fUSD/lending_fUSD_20260527
["ID","MTS","AMOUNT","RATE_DAILY","PERIOD"]
[423082131,1779831057000,-151.0,0.00038563,30]
[423082128,1779831057000,-928.667369,0.00038563,30]
[423082102,1779831057000,-151.0,0.00038563,30]
[423082151,1779831057000,-151.0,0.00038563,30]
[423082103,1779831057000,-1119.127767,0.00038563,30]
[423082095,1779831057000,-151.0,0.00038563,30]
[423082104,1779831057000,-1119.127767,0.00038563,30]
[423082106,1779831057000,-1119.127767,0.00038563,30]
[423082105,1779831057000,-1119.127767,0.00038563,30]
[423082118,1779831057000,-1457.88075,0.00038563,30]
[423082114,1779831057000,-1972.962514,0.00038563,30]
[423082113,1779831057000,-155.689525,0.00038563,30]
[423082107,1779831057000,-179.170915,0.00038563,30]
[423082116,1779831057000,-1457.88075,0.00038563,30]
[423082108,1779831057000,-155.689525,0.00038563,30]
[423082112,1779831057000,-1972.962514,0.00038563,30]
[423082109,1779831057000,-1972.962514,0.00038563,30]
[423082130,1779831057000,-1498.560399,0.00038563,30]
[423082121,1779831057000,-813.33967,0.00038563,30]
[423082129,1779831057000,-1457.88075,0.00038563,30]
[423082126,1779831057000,-151.0,0.00038563,30]
[423082124,1779831057000,-1498.560399,0.00038563,30]
[423082117,1779831057000,-1498.560399,0.00038563,30]
[423082120,1779831057000,-151.0,0.00038563,30]
[423082111,1779831057000,-1972.962514,0.00038563,30]
[423082115,1779831057000,-155.689525,0.00038563,30]
[423082110,1779831057000,-155.689525,0.00038563,30]
[423082119,1779831057000,-1498.560399,0.00038563,30]
[423082194,1779831058000,-1999.29162,0.00038563,30]
[423082202,1779831058000,-7259.284853,0.00038563,30]
[423082196,1779831058000,-1999.291612,0.00038563,30]
[423082193,1779831058000,-1403.25327,0.00038563,30]
[423082188,1779831058000,-1601.170816,0.00038563,30]
[423082192,1779831058000,-1601.170808,0.00038563,30]
[423082190,1779831058000,-1403.25327,0.00038563,30]
[423082187,1779831058000,-1999.29162,0.00038563,30]
[423082189,1779831058000,-151.0,0.00038563,30]
[423082195,1779831058000,-1403.253263,0.00038563,30]
[423082191,1779831058000,-1999.29162,0.00038563,30]
[423082198,1779831058000,-207.458257,0.00038563,30]
[423082206,1779831058000,-7259.284853,0.00038563,30]
[423082197,1779831058000,-7259.284853,0.00038563,30]
[423082200,1779831058000,-1783.624553,0.00038563,30]
[423082203,1779831058000,-1823.388032,0.00038563,30]
[423082201,1779831058000,-151.0,0.00038563,30]
[423082204,1779831058000,-1783.624553,0.00038563,30]
[423082205,1779831058000,-151.0,0.00038563,30]
[423082213,1779831058000,-151.0,0.00038563,30]
[423082216,1779831058000,-1840.351082,0.00038563,30]
[423082215,1779831058000,-1840.351082,0.00038563,30]
[423082214,1779831058000,-1783.624552,0.00038563,30]
[423082212,1779831058000,-1823.388038,0.00038563,30]
[423082186,1779831058000,-1403.25327,0.00038563,30]
[423082199,1779831058000,-1823.388032,0.00038563,30]
[423082185,1779831058000,-1601.170816,0.00038563,30]
[423082171,1779831058000,-1096.595333,0.00038563,30]
[423082184,1779831058000,-1601.170816,0.00038563,30]
[423082207,1779831058000,-1823.388032,0.00038563,30]
[423082159,1779831058000,-316.037821,0.00038563,30]
[423082158,1779831058000,-316.03783,0.00038563,30]
[423082157,1779831058000,-17651.50365,0.00038563,30]
[423082161,1779831058000,-1929.751704,0.00038563,30]
[423082160,1779831058000,-1929.751704,0.00038563,30]
[423082164,1779831058000,-972.19067,0.00038563,30]
[423082163,1779831058000,-1929.751703,0.00038563,30]
[423082162,1779831058000,-1929.751704,0.00038563,30]
[423082167,1779831058000,-972.19067,0.00038563,30]
[423082168,1779831058000,-1493.575534,0.00038563,30]
[423082166,1779831058000,-972.19067,0.00038563,30]
[423082183,1779831058000,-151.0,0.00038563,30]
[423082170,1779831058000,-1493.575534,0.00038563,30]
[423082169,1779831058000,-1493.575534,0.00038563,30]
[423082172,1779831058000,-607.236815,0.00038563,30]
[423082182,1779831058000,-607.236813,0.00038563,30]
[423082173,1779831058000,-151.0,0.00038563,30]
[423082176,1779831058000,-607.236815,0.00038563,30]
[423082178,1779831058000,-1096.595333,0.00038563,30]
[423082181,1779831058000,-1096.595341,0.00038563,30]
[423082175,1779831058000,-1096.595333,0.00038563,30]
[423082174,1779831058000,-1493.575534,0.00038563,30]
[423082180,1779831058000,-151.0,0.00038563,30]
[423082179,1779831058000,-607.236815,0.00038563,30]
[423082177,1779831058000,-151.0,0.00038563,30]
[423082165,1779831058000,-972.19067,0.00038563,30]
[423082211,1779831058000,-7259.28485304,0.00038563,30]
[423082208,1779831058000,-151.0,0.00038563,30]
[423082209,1779831058000,-1783.624553,0.00038563,30]
[423082251,1779831058000,-151.0,0.0003864,30]
[423082245,1779831058000,-3171.4394,0.0003864,30]
[423082246,1779831058000,-151.0,0.0003864,30]
[423082249,1779831058000,-287.63651,0.0003864,30]
[423082247,1779831058000,-151.0,0.0003864,30]
[423082248,1779831058000,-235.414867,0.0003864,30]
[423082250,1779831058000,-287.63651,0.0003864,30]
[423082255,1779831058000,-150.0,0.00038679,7]
[423082265,1779831058000,-500.0,0.00038728,120]
[423082254,1779831058000,-1574.64177388,0.00038672,60]
[423082262,1779831058000,-150.0,0.00038679,7]
[423082259,1779831058000,-150.0,0.00038679,7]
[423082243,1779831058000,-2023.0,0.0003863,120]
[423082257,1779831058000,-150.0,0.00038679,7]
[423082258,1779831058000,-150.51859284,0.00038679,7]
[423082261,1779831058000,-150.0,0.00038679,7]
[423082260,1779831058000,-150.0,0.00038679,7]
[423082264,1779831058000,-351.0879834,0.00038726,120]
[423082268,1779831058000,-250.0,0.000388,2]
[423082266,1779831058000,-150.0,0.00038778,120]
[423082269,1779831058000,-250.0,0.000388,2]
[423082267,1779831058000,-250.0,0.000388,2]
[423082271,1779831058000,-177.0,0.000388,120]
[423082270,1779831058000,-250.0,0.000388,2]
[423082272,1779831058000,-159105.0,0.000388,30]
[423082210,1779831058000,-151.0,0.00038563,30]
[423082263,1779831058000,-800.0,0.000387,14]
[423082253,1779831058000,-287.63651,0.0003864,30]
[423082256,1779831058000,-150.0,0.00038679,7]
[423082241,1779831058000,-153.0,0.0003862,120]
[423082244,1779831058000,-1548.0,0.0003863,30]
[423082217,1779831058000,-1840.351082,0.00038563,30]
[423082219,1779831058000,-1444.218437,0.00038563,30]
[423082222,1779831058000,-1444.218436,0.00038563,30]
[423082223,1779831058000,-1497.676533,0.00038563,30]
[423082218,1779831058000,-1840.351077,0.00038563,30]
[423082220,1779831058000,-1444.218437,0.00038563,30]
[423082224,1779831058000,-1497.676533,0.00038563,30]
[423082227,1779831058000,-5000.0,0.00038563,2]
[423082225,1779831058000,-1497.676533,0.00038563,30]
[423082226,1779831058000,-1497.676534,0.00038563,30]
[423082239,1779831058000,-2023.0,0.0003862,120]
[423082229,1779831058000,-5000.0,0.00038563,2]
[423082221,1779831058000,-1444.218437,0.00038563,30]
[423082242,1779831058000,-195.0,0.0003862,120]
[423082228,1779831058000,-5000.0,0.00038563,2]
[423082252,1779831058000,-287.63651,0.0003864,30]
[423082240,1779831058000,-1832.0,0.0003862,120]
[423082238,1779831058000,-195.0,0.0003861,120]
[423082233,1779831058000,-153.0,0.000386,120]
[423082230,1779831058000,-5000.0,0.00038563,2]
[423082237,1779831058000,-153.0,0.0003861,120]
[423082234,1779831058000,-195.0,0.000386,120]
[423082236,1779831058000,-1832.0,0.0003861,120]
[423082232,1779831058000,-1832.0,0.000386,120]
[423082231,1779831058000,-800.0,0.000386,14]
[423082235,1779831058000,-2023.0,0.0003861,120]
[423082317,1779831059000,-1119.127759,0.000388,30]
[423082319,1779831059000,-1972.962514,0.000388,30]
[423082318,1779831059000,-155.689525,0.000388,30]
[423082314,1779831059000,-1119.127767,0.000388,30]
[423082313,1779831059000,-151.0,0.000388,30]
[423082320,1779831059000,-1972.962514,0.000388,30]
[423082307,1779831059000,-151.0,0.000388,30]
[423082308,1779831059000,-416.203435,0.000388,30]
[423082311,1779831059000,-416.203435,0.000388,30]
[423082309,1779831059000,-151.0,0.000388,30]
[423082306,1779831059000,-416.203435,0.000388,30]
[423082312,1779831059000,-223.009858,0.000388,30]
[423082310,1779831059000,-151.0,0.000388,30]
[423082315,1779831059000,-1119.127767,0.000388,30]
[423082338,1779831059000,-928.667369,0.000388,30]
[423082321,1779831059000,-155.689525,0.000388,30]
[423082325,1779831059000,-155.68952,0.000388,30]
[423082323,1779831059000,-155.689525,0.000388,30]
[423082326,1779831059000,-1457.88075,0.000388,30]
[423082324,1779831059000,-1972.962524,0.000388,30]
[423082328,1779831059000,-1457.88075,0.000388,30]
[423082322,1779831059000,-1972.962514,0.000388,30]
[423082327,1779831059000,-1498.560399,0.000388,30]
[423082330,1779831059000,-151.0,0.000388,30]
[423082340,1779831059000,-1498.560401,0.000388,30]
[423082331,1779831059000,-813.33967,0.000388,30]
[423082329,1779831059000,-1498.560399,0.000388,30]
[423082305,1779831059000,-416.203435,0.000388,30]
[423082316,1779831059000,-1119.127767,0.000388,30]
[423082303,1779831059000,-215.06263,0.000388,30]
[423082278,1779831059000,-151.0,0.000388,30]
[423082302,1779831059000,-151.0,0.000388,30]
[423082334,1779831059000,-1498.560399,0.000388,30]
[423082277,1779831059000,-230.650941,0.000388,30]
[423082279,1779831059000,-151.0,0.000388,30]
[423082274,1779831059000,-205.404994,0.000388,30]
[423082273,1779831059000,-205.404994,0.000388,30]
[423082276,1779831059000,-205.404994,0.000388,30]
[423082275,1779831059000,-205.404994,0.000388,30]
[423082281,1779831059000,-151.0,0.000388,30]
[423082291,1779831059000,-287.63651,0.000388,30]
[423082283,1779831059000,-151.0,0.000388,30]
[423082284,1779831059000,-151.0,0.000388,30]
[423082282,1779831059000,-190.128078,0.000388,30]
[423082280,1779831059000,-151.0,0.000388,30]
[423082300,1779831059000,-151.0,0.000388,30]
[423082287,1779831059000,-151.0,0.000388,30]
[423082288,1779831059000,-151.0,0.000388,30]
[423082285,1779831059000,-151.0,0.000388,30]
[423082286,1779831059000,-151.0,0.000388,30]
[423082289,1779831059000,-287.63651,0.000388,30]
[423082292,1779831059000,-287.63651,0.000388,30]
[423082293,1779831059000,-269.112658,0.000388,30]
[423082294,1779831059000,-151.0,0.000388,30]
[423082297,1779831059000,-269.112658,0.000388,30]
[423082295,1779831059000,-269.112658,0.000388,30]
[423082298,1779831059000,-269.112658,0.000388,30]
[423082301,1779831059000,-215.06263,0.000388,30]
[423082299,1779831059000,-215.06263,0.000388,30]
[423082304,1779831059000,-215.06263,0.000388,30]
[423082290,1779831059000,-287.63651,0.000388,30]
[423082333,1779831059000,-1457.88075,0.000388,30]
[423082296,1779831059000,-171.77507,0.000388,30]
[423082336,1779831059000,-214.474922,0.000388,30]
[423082369,1779831059000,-2348.77,0.000389,120]
[423082379,1779831059000,-1252.65,0.000389,120]
[423082372,1779831059000,-1377.52,0.000389,120]
[423082371,1779831059000,-1377.526,0.000389,120]
[423082370,1779831059000,-1377.526,0.000389,120]
[423082375,1779831059000,-1039.32,0.000389,120]
[423082399,1779831059000,-269.112658,0.000389,30]
[423082377,1779831059000,-444.63,0.000389,120]
[423082374,1779831059000,-1631.35,0.000389,120]
[423082376,1779831059000,-2212.46,0.000389,120]
[423082373,1779831059000,-1380.1,0.000389,120]
[423082381,1779831059000,-205.404994,0.000389,30]
[423082383,1779831059000,-205.404994,0.000389,30]
[423082393,1779831059000,-287.63651,0.000389,30]
[423082382,1779831059000,-205.404994,0.000389,30]
[423082387,1779831059000,-262.712565,0.000389,30]
[423082392,1779831059000,-287.63651,0.000389,30]
[423082384,1779831059000,-248.784381,0.000389,30]
[423082385,1779831059000,-151.0,0.000389,30]
[423082389,1779831059000,-151.0,0.000389,30]
[423082391,1779831059000,-151.0,0.000389,30]
[423082386,1779831059000,-294.61776415,0.000389,30]
[423082388,1779831059000,-151.0,0.000389,30]
[423082395,1779831059000,-287.63651,0.000389,30]
[423082396,1779831059000,-1009.67,0.000389,120]
[423082397,1779831059000,-269.112658,0.000389,30]
[423082394,1779831059000,-287.63651,0.000389,30]
[423082398,1779831059000,-151.0,0.000389,30]
[423082341,1779831059000,-151.0,0.000388,30]
[423082367,1779831059000,-2348.776,0.000389,120]
[423082380,1779831059000,-205.404994,0.000389,30]
[423082390,1779831059000,-151.0,0.000389,30]
[423082368,1779831059000,-2348.776,0.000389,120]
[423082378,1779831059000,-1009.67,0.000389,120]
[423082332,1779831059000,-928.667369,0.000388,30]
[423082339,1779831059000,-1457.880741,0.000388,30]
[423082337,1779831059000,-813.33967,0.000388,30]
[423082335,1779831059000,-151.0,0.000388,30]
[423082342,1779831059000,-813.33967,0.000388,30]
[423082352,1779831059000,-12987.85751169,0.00038805,30]
[423082353,1779831059000,-250.0,0.00038808,30]
[423082343,1779831059000,-928.667369,0.000388,30]
[423082350,1779831059000,-216.041038,0.000388,30]
[423082345,1779831059000,-813.339661,0.000388,30]
[423082344,1779831059000,-181.150373,0.000388,30]
[423082347,1779831059000,-800.0,0.000388,14]
[423082349,1779831059000,-216.041038,0.000388,30]
[423082351,1779831059000,-216.041035,0.000388,30]
[423082348,1779831059000,-216.041038,0.000388,30]
[423082358,1779831059000,-32470.6350047,0.00038878,2]
[423082346,1779831059000,-928.667365,0.000388,30]
[423082359,1779831059000,-1818.05618411,0.0003888,30]
[423082360,1779831059000,-150.0,0.00038885,120]
[423082362,1779831059000,-484.68,0.00038892,30]
[423082361,1779831059000,-2316.0,0.00038889,11]
[423082364,1779831059000,-15918.21402603,0.000389,2]
[423082363,1779831059000,-170335.6687944,0.000389,30]
[423082366,1779831059000,-153.0,0.000389,120]
[423082356,1779831059000,-12693.79716174,0.00038834,2]
[423082354,1779831059000,-150.0,0.00038813,120]
[423082365,1779831059000,-11112.88923634,0.000389,15]
[423082355,1779831059000,-2316.0,0.00038817,11]
[423082357,1779831059000,-7189.52,0.00038851,2]
[423082423,1779831060000,-1195.61908739,0.000389,2]
[423082427,1779831060000,-1195.61908739,0.000389,2]
[423082421,1779831060000,-1195.61908739,0.000389,2]
[423082425,1779831060000,-1195.61908739,0.000389,2]
[423082426,1779831060000,-1195.61908739,0.000389,2]
[423082424,1779831060000,-1195.61908739,0.000389,2]
[423082430,1779831060000,-1195.61908739,0.000389,2]
[423082428,1779831060000,-1195.61908739,0.000389,2]
[423082429,1779831060000,-1195.61908739,0.000389,2]
[423082437,1779831060000,-269.112658,0.00038904,30]
[423082433,1779831060000,-1195.61908739,0.000389,2]
[423082441,1779831060000,-269.112659,0.00038904,30]
[423082434,1779831060000,-1195.61908739,0.000389,2]
[423082438,1779831060000,-257.483575,0.00038904,30]
[423082435,1779831060000,-1195.61908739,0.000389,2]
[423082440,1779831060000,-269.112658,0.00038904,30]
[423082431,1779831060000,-1195.61908739,0.000389,2]
[423082439,1779831060000,-269.112658,0.00038904,30]
[423082432,1779831060000,-1195.61908739,0.000389,2]
[423082422,1779831060000,-1195.61908739,0.000389,2]
[423082402,1779831060000,-215.06263,0.000389,30]
[423082415,1779831060000,-800.0,0.000389,14]
[423082436,1779831060000,-170.0,0.00038904,120]
[423082406,1779831060000,-215.06263,0.000389,30]
[423082405,1779831060000,-151.0,0.000389,30]
[423082407,1779831060000,-215.06263,0.000389,30]
[423082401,1779831060000,-269.112658,0.000389,30]
[423082404,1779831060000,-215.06263,0.000389,30]
[423082403,1779831060000,-151.0,0.000389,30]
[423082400,1779831060000,-269.112658,0.000389,30]
[423082409,1779831060000,-416.203435,0.000389,30]
[423082419,1779831060000,-1195.61908739,0.000389,2]
[423082420,1779831060000,-1195.61908739,0.000389,2]
[423082410,1779831060000,-151.0,0.000389,30]
[423082408,1779831060000,-416.203435,0.000389,30]
[423082412,1779831060000,-151.0,0.000389,30]
[423082416,1779831060000,-1195.61908746,0.000389,2]
[423082411,1779831060000,-416.203435,0.000389,30]
[423082417,1779831060000,-1195.61908739,0.000389,2]
[423082418,1779831060000,-1195.61908739,0.000389,2]
[423082414,1779831060000,-416.203435,0.000389,30]
[423082413,1779831060000,-151.0,0.000389,30]
[423082443,1779831060000,-151.0,0.00038904,30]
[423082448,1779831060000,-21904.0,0.00038904,120]
[423082442,1779831060000,-215.06263,0.00038904,30]
[423082467,1779831060000,-300.0,0.00038904,120]
[423082469,1779831060000,-300.0,0.00038904,120]
[423082470,1779831060000,-300.0,0.00038904,120]
[423082472,1779831060000,-300.0,0.00038904,120]
[423082471,1779831060000,-300.0,0.00038904,120]
[423082476,1779831060000,-292.765492,0.00038904,120]
[423082473,1779831060000,-300.0,0.00038904,120]
[423082475,1779831060000,-300.0,0.00038904,120]
[423082474,1779831060000,-300.0,0.00038904,120]
[423082477,1779831060000,-1548.0,0.00038904,30]
[423082482,1779831060000,-222.0239102,0.00038918,120]
[423082480,1779831060000,-500.0,0.00038904,120]
[423082481,1779831060000,-450.758911,0.00038904,120]
[423082479,1779831060000,-500.0,0.00038904,120]
[423082483,1779831060000,-218.4438059,0.00038918,120]
[423082484,1779831060000,-372.0,0.0003892,116]
[423082485,1779831060000,-6323.29,0.00038945,2]
[423082444,1779831060000,-215.06263,0.00038904,30]
[423082486,1779831060000,-264.58771285,0.00038954,2]
[423082464,1779831060000,-300.0,0.00038904,120]
[423082468,1779831060000,-300.0,0.00038904,120]
[423082478,1779831060000,-500.0,0.00038904,120]
[423082466,1779831060000,-300.0,0.00038904,120]
[423082445,1779831060000,-151.0,0.00038904,30]
[423082446,1779831060000,-215.06263,0.00038904,30]
[423082463,1779831060000,-300.0,0.00038904,120]
[423082447,1779831060000,-215.062628,0.00038904,30]
[423082452,1779831060000,-300.0,0.00038904,120]
[423082450,1779831060000,-300.0,0.00038904,120]
[423082449,1779831060000,-300.0,0.00038904,120]
[423082454,1779831060000,-300.0,0.00038904,120]
[423082460,1779831060000,-300.0,0.00038904,120]
[423082451,1779831060000,-300.0,0.00038904,120]
[423082455,1779831060000,-300.0,0.00038904,120]
[423082457,1779831060000,-300.0,0.00038904,120]
[423082456,1779831060000,-300.0,0.00038904,120]
[423082459,1779831060000,-300.0,0.00038904,120]
[423082458,1779831060000,-300.0,0.00038904,120]
[423082465,1779831060000,-300.0,0.00038904,120]
[423082453,1779831060000,-300.0,0.00038904,120]
[423082461,1779831060000,-300.0,0.00038904,120]
[423082462,1779831060000,-300.0,0.00038904,120]
[423082516,1779831061000,-410170.66428053,0.00039,2]
[423082524,1779831061000,-5000.0,0.00039,9]
[423082525,1779831061000,-2350.0,0.00039,2]
[423082522,1779831061000,-249.45986591,0.00039,14]
[423082518,1779831061000,-5395.32946448,0.00039,4]
[423082521,1779831061000,-10924.50603984,0.00039,2]
[423082523,1779831061000,-5293.78956644,0.00039,40]
[423082519,1779831061000,-38345.347117,0.00039,120]
[423082517,1779831061000,-495.72378646,0.00039,30]
[423082527,1779831061000,-205.404994,0.00039,30]
[423082520,1779831061000,-31340.43838132,0.00039,2]
[423082529,1779831061000,-205.404994,0.00039,30]
[423082536,1779831061000,-195.0,0.0003907,120]
[423082530,1779831061000,-151.0,0.00039,30]
[423082533,1779831061000,-5033.0517731,0.00039055,120]
[423082528,1779831061000,-205.404994,0.00039,30]
[423082526,1779831061000,-205.404994,0.00039,30]
[423082532,1779831061000,-256.59113196,0.00039054,2]
[423082534,1779831061000,-1832.0,0.0003907,120]
[423082546,1779831061000,-195.0,0.0003908,120]
[423082535,1779831061000,-153.0,0.0003907,120]
[423082537,1779831061000,-2023.0,0.0003907,120]
[423082540,1779831061000,-11639.73365757,0.00039072,2]
[423082515,1779831061000,-3000.0,0.00039,20]
[423082531,1779831061000,-1772960.82205758,0.00039,2]
[423082513,1779831061000,-151.0,0.00038999,30]
[423082492,1779831061000,-5000.0,0.00038961,2]
[423082510,1779831061000,-16924.38592958,0.00038999,10]
[423082544,1779831061000,-195.0,0.0003908,120]
[423082487,1779831061000,-301.88077934,0.00038955,14]
[423082488,1779831061000,-500.0,0.00038958,30]
[423082491,1779831061000,-5000.0,0.00038961,2]
[423082489,1779831061000,-500.0,0.00038958,30]
[423082490,1779831061000,-5000.0,0.00038961,2]
[423082493,1779831061000,-151.0,0.00038961,30]
[423082494,1779831061000,-151.0,0.00038961,30]
[423082497,1779831061000,-287.63651,0.00038961,30]
[423082499,1779831061000,-287.636507,0.00038961,30]
[423082496,1779831061000,-287.63651,0.00038961,30]
[423082495,1779831061000,-151.0,0.00038961,30]
[423082498,1779831061000,-287.63651,0.00038961,30]
[423082501,1779831061000,-416.203435,0.00038961,30]
[423082511,1779831061000,-5800.0,0.00038999,14]
[423082504,1779831061000,-416.203435,0.00038961,30]
[423082512,1779831061000,-230.35004292,0.00038999,14]
[423082502,1779831061000,-151.0,0.00038961,30]
[423082503,1779831061000,-151.0,0.00038961,30]
[423082500,1779831061000,-416.203435,0.00038961,30]
[423082505,1779831061000,-151.0,0.00038961,30]
[423082506,1779831061000,-416.20343979,0.00038961,30]
[423082507,1779831061000,-200.0,0.0003897,30]
[423082508,1779831061000,-200.03348725,0.0003899,2]
[423082509,1779831061000,-710.68817976,0.00038995,4]
[423082514,1779831061000,-678.9892993,0.00039,28]
[423082538,1779831061000,-376.86383712,0.00039072,2]
[423082593,1779831061000,-159.0,0.00039172,120]
[423082545,1779831061000,-1832.0,0.0003908,120]
[423082573,1779831061000,-363.62,0.00039148,30]
[423082577,1779831061000,-150.0,0.00039151,120]
[423082579,1779831061000,-655.79332281,0.00039154,7]
[423082581,1779831061000,-250.0,0.00039159,57]
[423082572,1779831061000,-158.1,0.00039146,30]
[423082574,1779831061000,-250.0,0.00039148,57]
[423082576,1779831061000,-273.98756518,0.00039151,120]
[423082580,1779831061000,-250.0,0.00039156,57]
[423082575,1779831061000,-250.0,0.00039151,57]
[423082578,1779831061000,-250.0,0.00039154,57]
[423082584,1779831061000,-250.0,0.00039165,58]
[423082583,1779831061000,-250.0,0.00039163,58]
[423082587,1779831061000,-250.0,0.00039168,58]
[423082589,1779831061000,-50000.0,0.00039171,62]
[423082588,1779831061000,-250.0,0.0003917,58]
[423082585,1779831061000,-1062.37,0.00039166,120]
[423082590,1779831061000,-726.24001659,0.00039171,120]
[423082586,1779831061000,-657.86,0.00039166,30]
[423082591,1779831061000,-250.0,0.00039171,58]
[423082594,1779831061000,-159.0,0.00039172,120]
[423082595,1779831061000,-159.0,0.00039172,120]
[423082596,1779831061000,-891.68082408,0.00039172,120]
[423082597,1779831061000,-971.48,0.00039172,120]
[423082539,1779831061000,-1056.07737902,0.00039072,2]
[423082592,1779831061000,-157.0,0.00039172,120]
[423082570,1779831061000,-250.0,0.00039142,57]
[423082582,1779831061000,-250.0,0.00039161,58]
[423082568,1779831061000,-250.0,0.00039135,57]
[423082542,1779831061000,-1832.0,0.0003908,120]
[423082569,1779831061000,-250.0,0.00039138,57]
[423082543,1779831061000,-153.0,0.0003908,120]
[423082541,1779831061000,-162.0,0.0003908,120]
[423082547,1779831061000,-153.0,0.0003908,120]
[423082550,1779831061000,-2500.0,0.00039083,2]
[423082548,1779831061000,-2023.0,0.0003908,120]
[423082558,1779831061000,-2023.0,0.0003909,120]
[423082554,1779831061000,-1832.0,0.0003909,120]
[423082555,1779831061000,-195.0,0.0003909,120]
[423082552,1779831061000,-153.0,0.0003909,120]
[423082549,1779831061000,-2023.0,0.0003908,120]
[423082556,1779831061000,-153.0,0.0003909,120]
[423082551,1779831061000,-1832.0,0.0003909,120]
[423082571,1779831061000,-250.0,0.00039145,57]
[423082567,1779831061000,-250.0,0.00039131,57]
[423082559,1779831061000,-2826.0,0.000391,120]
[423082564,1779831061000,-163.0,0.00039103,11]
[423082562,1779831061000,-1000.0,0.00039102,2]
[423082566,1779831061000,-250.0,0.00039127,57]
[423082563,1779831061000,-1252.04033232,0.00039102,2]
[423082565,1779831061000,-250.0,0.00039123,57]
[423082560,1779831061000,-1000.0,0.00039102,2]
[423082557,1779831061000,-2023.0,0.0003909,120]
[423082553,1779831061000,-195.0,0.0003909,120]
[423082561,1779831061000,-1000.0,0.00039102,2]
[423082637,1779831062000,-500.0,0.00039172,120]
[423082633,1779831062000,-500.0,0.00039172,120]
[423082640,1779831062000,-1049.86,0.00039172,120]
[423082638,1779831062000,-1049.86,0.00039172,120]
[423082635,1779831062000,-500.0,0.00039172,120]
[423082628,1779831062000,-1049.86,0.00039172,120]
[423082630,1779831062000,-1049.86,0.00039172,120]
[423082632,1779831062000,-1049.86,0.00039172,120]
[423082631,1779831062000,-500.0,0.00039172,120]
[423082639,1779831062000,-500.0,0.00039172,120]
[423082634,1779831062000,-1049.86,0.00039172,120]
[423082636,1779831062000,-1049.86,0.00039172,120]
[423082651,1779831062000,-500.0,0.00039172,120]
[423082652,1779831062000,-452.1,0.00039172,120]
[423082653,1779831062000,-1049.86,0.00039172,120]
[423082641,1779831062000,-500.0,0.00039172,120]
[423082643,1779831062000,-500.0,0.00039172,120]
[423082647,1779831062000,-390.27405557,0.00039172,120]
[423082649,1779831062000,-500.0,0.00039172,120]
[423082648,1779831062000,-1049.86,0.00039172,120]
[423082646,1779831062000,-1049.86,0.00039172,120]
[423082645,1779831062000,-500.0,0.00039172,120]
[423082650,1779831062000,-1049.86,0.00039172,120]
[423082644,1779831062000,-1049.86,0.00039172,120]
[423082629,1779831062000,-500.0,0.00039172,120]
[423082642,1779831062000,-1049.86,0.00039172,120]
[423082627,1779831062000,-500.0,0.00039172,120]
[423082598,1779831062000,-500.0,0.00039172,120]
[423082624,1779831062000,-1049.86,0.00039172,120]
[423082604,1779831062000,-500.0,0.00039172,120]
[423082601,1779831062000,-500.0,0.00039172,120]